bitfinex/quotes_BTCUSD_20260215
["timestamp","ask_amount","ask_price","bid_price","bid_amount"]
[1771115702012,0.07170703,69729.0,69720.0,0.07171525]
[1771115702212,0.00012,69730.0,69719.0,0.43174217]
[1771115702390,0.00012,69730.0,69719.0,0.0959457]
[1771115702607,0.07170733,69728.0,69719.0,0.07171596]
[1771115702817,0.02302695,69726.0,69717.0,0.07171807]
[1771115703020,0.02302695,69723.0,69710.0,0.00032]
[1771115703221,0.02302695,69719.0,69713.0,0.07172185]
[1771115703421,0.02302695,69719.0,69714.0,0.07172133]
[1771115703601,0.07171452,69721.0,69713.0,0.07172185]
[1771115703814,0.07171419,69722.0,69713.0,0.07172185]
[1771115703815,0.07171363,69722.0,69714.0,0.07172141]
[1771115704014,0.07171184,69724.0,69717.0,0.006]
[1771115704238,0.07171184,69724.0,69716.0,0.07171929]
[1771115704239,0.07171255,69723.0,69716.0,0.07171929]
[1771115704956,0.00012,69730.0,69715.0,0.10741342]
[1771115705161,0.07170727,69728.0,69720.0,0.07171497]
[1771115705371,0.07170851,69727.0,69719.0,0.07171625]
[1771115706137,0.07170927,69726.0,69718.0,0.0717173]
[1771115706590,0.0717121,69724.0,69716.0,0.002]
[1771115706815,0.0717121,69724.0,69715.0,0.09594989]
[1771115706816,0.07171251,69723.0,69715.0,0.09594989]
[1771115707180,0.0717121,69724.0,69719.0,0.009]
[1771115707382,0.0717121,69724.0,69716.0,0.07171938]
[1771115707766,0.07171048,69725.0,69717.0,0.07171831]
[1771115708282,4e-05,69718.0,69717.0,0.07167831]
[1771115708464,7.5e-06,69724.0,69717.0,0.07167831]
[1771115708892,0.07153295,69725.0,69717.0,0.07167831]
[1771115709207,0.07153295,69725.0,69717.0,0.07187831]
[1771115710132,0.0717114,69724.0,69717.0,0.08187831]
[1771115710268,0.0717114,69724.0,69717.0,0.0002]
[1771115710690,0.07171314,69723.0,69717.0,0.0112]
[1771115710910,0.07171511,69721.0,69717.0,0.0002]
[1771115711212,4e-05,69726.0,69717.0,0.0102]
[1771115711510,0.02302695,69721.0,69717.0,0.0002]
[1771115711966,0.02302695,69721.0,69717.0,0.0102]
[1771115712351,0.07171568,69720.0,69717.0,0.0102]
[1771115712717,0.07171749,69718.0,69714.0,4e-05]
[1771115712918,0.09596724,69717.0,69712.0,4e-05]
[1771115713080,0.07171966,69716.0,69712.0,4e-05]
[1771115713284,0.07172674,69709.0,69706.0,0.00013369]
[1771115713615,0.07172157,69715.0,69706.0,0.07186345]
[1771115714163,0.09596935,69715.0,69706.0,0.07186345]
[1771115714580,0.07172196,69714.0,69708.0,0.01104]
[1771115714761,0.07172281,69713.0,69708.0,4e-05]
[1771115714960,0.00016,69720.0,69708.0,4e-05]
[1771115715163,0.00016,69720.0,69712.0,0.07172297]
[1771115715384,0.00016,69720.0,69708.0,0.02353761]
[1771115715385,0.00016,69720.0,69714.0,0.07172098]
[1771115715568,7.41e-06,69720.0,69714.0,0.07172098]
[1771115715771,7.41e-06,69720.0,69712.0,0.07172357]
[1771115715972,7.41e-06,69720.0,69717.0,0.0002]
[1771115717134,7.41e-06,69720.0,69717.0,0.0072]
[1771115718863,0.07160728,69723.0,69717.0,0.0072]
[1771115719046,0.001,69720.0,69717.0,0.0002]
[1771115719247,0.00033764,69719.0,69717.0,0.0032]
[1771115719499,4e-05,69724.0,69717.0,0.0032]
[1771115719705,0.07171314,69723.0,69717.0,0.0002]
[1771115720506,0.001,69720.0,69717.0,0.0082]
[1771115720662,0.001,69720.0,69717.0,0.0002]
[1771115720868,0.07175226,69724.0,69717.0,0.0002]
[1771115721056,4e-05,69724.0,69717.0,0.0082]
[1771115721254,4e-05,69724.0,69720.0,0.07171441]
[1771115722286,4e-05,69724.0,69717.0,0.0002]
[1771115722467,4e-05,69724.0,69717.0,0.0032]
[1771115722674,4e-05,69724.0,69718.0,0.07171723]
[1771115723063,4e-05,69724.0,69720.0,0.003]
[1771115723470,4e-05,69720.0,69719.0,0.07163635]
[1771115723894,4e-05,69720.0,69718.0,0.07471723]
[1771115724104,0.07175625,69720.0,69717.0,0.0002]
[1771115724736,4e-05,69720.0,69717.0,0.0002]
[1771115724991,4e-05,69720.0,69717.0,0.0719185]
[1771115725196,4e-05,69720.0,69717.0,0.0002]
[1771115726520,4e-05,69720.0,69717.0,0.0012]
[1771115726718,4e-05,69720.0,69717.0,0.0002]
[1771115729490,4e-05,69720.0,69714.0,0.07172127]
[1771115729685,4e-05,69720.0,69714.0,0.06686576]
[1771115730454,4e-05,69720.0,69715.0,0.07172056]
[1771115731058,4e-05,69724.0,69717.0,0.02349761]
[1771115731373,4e-05,69724.0,69717.0,0.0952153]
[1771115731579,4e-05,69724.0,69718.0,0.07171676]
[1771115731780,0.07175141,69724.0,69717.0,0.02349761]
[1771115731976,0.07159883,69724.0,69717.0,0.02349761]
[1771115732203,0.07159883,69724.0,69717.0,0.0952154]
[1771115732401,0.07149843,69724.0,69717.0,0.0952154]
[1771115732804,0.07211057,69725.0,69717.0,0.0952154]
[1771115733006,0.07171136,69724.0,69717.0,0.0952154]
[1771115733434,0.07171136,69724.0,69717.0,0.02349761]
[1771115733641,0.0004,69725.0,69714.0,4e-05]
[1771115733784,0.07171581,69720.0,69714.0,4e-05]
[1771115735634,0.28684753,69724.0,69714.0,4e-05]
[1771115735635,0.07171144,69724.0,69715.0,0.07172041]
[1771115735808,0.07171144,69724.0,69716.0,0.07171913]
[1771115736008,0.0004,69722.0,69717.0,0.0717185]
[1771115736249,0.0004,69722.0,69717.0,0.09521611]
[1771115736480,0.0004,69722.0,69721.0,0.0717144]
[1771115736620,0.0004,69722.0,69719.0,0.07171545]
[1771115738101,0.0004,69722.0,69718.0,0.07171677]
[1771115738296,4e-05,69720.0,69718.0,0.07163677]
[1771115738513,0.00030524,69721.0,69718.0,0.07163677]
[1771115738711,0.00015259,69721.0,69714.0,0.08236878]
[1771115739016,0.07188882,69722.0,69715.0,0.07172003]
[1771115739168,0.07488882,69722.0,69715.0,0.07172003]
[1771115739563,0.07188882,69722.0,69715.0,0.07172003]
[1771115741699,0.00017476,69722.0,69714.0,0.07196134]
[1771115741915,0.0718884,69722.0,69715.0,0.07172039]
[1771115742150,0.00017476,69722.0,69715.0,0.07172039]
[1771115742383,0.00017476,69722.0,69717.0,0.07171829]
[1771115742618,2.201e-05,69722.0,69717.0,0.07171829]
[1771115743560,0.00042201,69722.0,69717.0,0.07171829]
[1771115744179,0.00242201,69722.0,69717.0,0.07171829]
[1771115744447,0.00042201,69722.0,69717.0,0.07171829]
[1771115744598,0.00242201,69722.0,69716.0,0.0717194]
[1771115744990,0.00042201,69722.0,69716.0,0.0717194]
[1771115745267,0.07313589,69722.0,69715.0,0.07192039]
[1771115745429,0.07213589,69722.0,69715.0,0.07192039]
[1771115745948,0.07313589,69722.0,69716.0,0.07171953]
[1771115747006,0.0001167,69722.0,69716.0,0.07171953]
[1771115747435,0.07283024,69722.0,69716.0,0.07171953]
[1771115747632,0.07183024,69722.0,69716.0,0.07171953]
[1771115748164,0.0001167,69722.0,69716.0,0.07171953]
[1771115748360,0.0011167,69722.0,69716.0,0.07171953]
[1771115748950,0.0001167,69722.0,69716.0,0.07171953]
[1771115749948,0.0001167,69722.0,69717.0,0.07171846]
[1771115750148,4e-05,69726.0,69716.0,0.10766798]
[1771115750396,4e-05,69726.0,69723.0,0.02368406]
[1771115750566,4e-05,69726.0,69724.0,0.02368406]
[1771115751601,0.0004,69729.0,69726.0,0.02368406]
[1771115751759,0.07210692,69729.0,69726.0,0.02368406]
[1771115751979,0.07210692,69729.0,69724.0,0.008]
[1771115752791,0.07170728,69728.0,69724.0,0.008]
[1771115753216,4e-05,69722.0,69721.0,0.09535811]
[1771115753551,4e-05,69726.0,69724.0,0.005]
[1771115754052,4e-05,69726.0,69721.0,0.09535811]
[1771115754234,4e-05,69726.0,69724.0,0.005]
[1771115754410,4e-05,69726.0,69718.0,4e-05]
[1771115754618,0.07171351,69722.0,69718.0,4e-05]
[1771115755454,0.07171715,69719.0,69715.0,0.0002]
[1771115755630,4e-05,69726.0,69715.0,0.0002]
[1771115755904,4e-05,69726.0,69712.0,4e-05]
[1771115755905,0.07172263,69713.0,69712.0,4e-05]
[1771115756129,0.07172157,69715.0,69712.0,4e-05]
[1771115756455,0.07171888,69717.0,69712.0,4e-05]
[1771115756658,0.024227,69719.0,69712.0,4e-05]
[1771115756797,0.07171954,69716.0,69715.0,0.001]
[1771115757198,0.07171954,69716.0,69712.0,4e-05]
[1771115757443,0.001,69715.0,69712.0,4e-05]
[1771115757637,0.07172057,69715.0,69712.0,4e-05]
[1771115758019,0.024227,69717.0,69710.0,1e-08]
[1771115758352,0.0717205,69716.0,69710.0,1e-08]
[1771115758651,0.07172167,69714.0,69710.0,1e-08]
[1771115758857,0.07172345,69713.0,69710.0,1e-08]
[1771115759036,0.07172269,69713.0,69710.0,1e-08]
[1771115759204,0.07172392,69712.0,69710.0,1e-08]
[1771115760091,0.07172392,69712.0,69710.0,0.00600001]
[1771115760386,0.07172469,69711.0,69710.0,1e-08]
[1771115760585,0.07172221,69714.0,69710.0,1e-08]
[1771115760787,0.07172221,69714.0,69706.0,0.07172978]
[1771115760993,0.07172313,69713.0,69706.0,0.07172978]
[1771115762398,0.024267,69716.0,69704.0,0.0717317]
[1771115762572,0.024267,69716.0,69706.0,0.007]
[1771115762781,0.07172413,69712.0,69705.0,0.07173084]
[1771115762980,0.024267,69716.0,69704.0,0.07178785]
[1771115762981,0.09598727,69716.0,69708.0,0.07172688]
[1771115763181,0.07172135,69715.0,69708.0,0.07172688]
[1771115763975,0.07172135,69715.0,69706.0,0.07872967]
[1771115764185,0.07172135,69715.0,69707.0,0.07172849]
[1771115764390,0.09598727,69716.0,69705.0,0.08398392]
[1771115764391,4e-05,69716.0,69705.0,0.08398392]
[1771115764667,4e-05,69716.0,69704.0,5.615e-05]
[1771115764668,4e-05,69716.0,69712.0,0.02368406]
[1771115764888,0.07164392,69719.0,69712.0,0.02368406]
[1771115765073,0.07223742,69720.0,69712.0,0.07172324]
[1771115765433,0.00052,69720.0,69714.0,0.07172064]
[1771115765639,0.00052,69720.0,69715.0,0.07171984]
[1771115765797,0.07171791,69718.0,69711.0,0.08398392]
[1771115765968,0.07171791,69718.0,69710.0,0.09540942]
[1771115766171,0.00052,69720.0,69710.0,0.02368406]
[1771115766388,0.00052,69720.0,69713.0,0.07172178]
[1771115766595,0.00052,69720.0,69714.0,0.07172073]
[1771115766786,0.00052,69720.0,69712.0,0.07172266]
[1771115767036,0.07223638,69720.0,69713.0,0.07172247]
[1771115767217,0.07223622,69720.0,69712.0,0.07172266]
[1771115767662,0.0717166,69719.0,69712.0,0.07172266]
[1771115768052,0.00052,69720.0,69713.0,0.02368406]
[1771115768257,4e-05,69714.0,69713.0,0.10758798]
[1771115768461,4e-05,69714.0,69713.0,0.02360406]
[1771115769972,4e-05,69714.0,69713.0,0.02860406]
[1771115770417,4e-05,69714.0,69710.0,0.08410392]
[1771115770570,4e-05,69714.0,69711.0,0.02368406]
[1771115770780,4e-05,69714.0,69713.0,0.001]
[1771115771229,0.00040736,69720.0,69715.0,0.07171966]
[1771115771530,0.07171128,69725.0,69718.0,0.07175736]
[1771115771756,0.22951436,69729.0,69719.0,0.02373175]
[1771115771955,0.07171033,69725.0,69721.0,0.02373175]
[1771115772230,0.07171336,69724.0,69719.0,0.02373175]
[1771115772431,0.07171336,69724.0,69720.0,0.02373175]
[1771115773292,0.07471336,69724.0,69720.0,0.02373175]
[1771115774583,0.07171336,69724.0,69720.0,0.02373175]
[1771115774772,0.07771336,69724.0,69720.0,0.02373175]
[1771115776340,0.006,69724.0,69720.0,0.02373175]
[1771115776540,0.02432471,69721.0,69710.0,1e-08]
[1771115776790,0.07172674,69709.0,69708.0,0.3436]
[1771115776990,0.02432471,69712.0,69704.0,0.0005]
[1771115777191,0.07173122,69705.0,69704.0,0.0005]
[1771115777345,0.05019723,69705.0,69704.0,0.0005]
[1771115777748,0.03896715,69706.0,69704.0,0.0005]
[1771115778060,0.01743316,69706.0,69704.0,0.0005]
[1771115778483,0.013,69705.0,69704.0,0.0005]
[1771115778689,0.01743316,69706.0,69704.0,0.0005]
[1771115779013,0.02343316,69706.0,69703.0,1e-08]
[1771115779148,0.02343316,69706.0,69703.0,0.00013066]
[1771115779358,0.01743316,69706.0,69703.0,0.00013066]
[1771115779769,0.01743316,69706.0,69704.0,0.0002]
[1771115780400,0.07172977,69707.0,69704.0,0.0002]
[1771115780590,0.015,69705.0,69704.0,0.0002]
[1771115780808,0.07172735,69709.0,69704.0,0.0002]
[1771115781170,0.016,69706.0,69704.0,0.0002]
[1771115781390,0.07172795,69708.0,69704.0,0.0002]
[1771115781797,0.01,69705.0,69704.0,0.0002]
[1771115782015,0.07172902,69707.0,69704.0,0.0002]
[1771115782445,0.01,69706.0,69704.0,0.0002]
[1771115782596,0.01,69706.0,69701.0,0.0002]
[1771115782800,0.01,69706.0,69701.0,0.00028758]
[1771115783204,0.07173378,69703.0,69701.0,0.00028758]
[1771115784123,0.071772,69704.0,69701.0,0.00028758]
[1771115784908,0.01,69703.0,69701.0,0.00028758]
[1771115785161,0.071772,69704.0,69701.0,0.00028758]
[1771115785513,0.077772,69704.0,69701.0,0.00028758]
[1771115786258,0.00604,69704.0,69701.0,0.00028758]
[1771115786874,4e-05,69704.0,69701.0,0.00028758]
[1771115787093,0.012,69703.0,69701.0,0.00028758]
[1771115787325,4e-05,69704.0,69701.0,0.00028758]
[1771115787595,0.00704,69704.0,69701.0,0.00028758]
[1771115787909,0.07173395,69702.0,69701.0,0.00028758]
[1771115788262,0.05019857,69702.0,69701.0,0.00028758]
[1771115788568,0.07173331,69703.0,69701.0,0.00028758]
[1771115789485,0.07173307,69703.0,69701.0,0.00028758]
[1771115789899,0.07177225,69704.0,69701.0,0.00028758]
[1771115790304,0.005,69702.0,69701.0,0.00028758]
[1771115790598,0.07177225,69704.0,69701.0,0.00028758]
[1771115790976,0.005,69703.0,69701.0,0.00028758]
[1771115791173,0.07173305,69703.0,69701.0,0.00028758]
[1771115791516,0.07173292,69703.0,69701.0,0.00028758]
[1771115792711,0.07177385,69704.0,69699.0,0.00037066]
[1771115792858,0.0717353,69701.0,69699.0,0.00048953]
[1771115793059,0.05019992,69701.0,69699.0,0.00048953]
[1771115793895,0.02866385,69701.0,69699.0,0.00048953]
[1771115794227,0.02866385,69701.0,69699.0,0.00248953]
[1771115795565,0.07174084,69696.0,69690.0,0.00012]
[1771115795771,0.07174084,69696.0,69690.0,0.00022011]
[1771115796647,0.07174102,69696.0,69690.0,0.00922011]
[1771115796947,0.07174102,69696.0,69690.0,0.00022011]
[1771115797145,0.07174187,69695.0,69690.0,0.00022011]
[1771115797365,0.05020315,69695.0,69690.0,0.01022011]
[1771115798152,0.05020315,69695.0,69690.0,0.00022011]
[1771115798349,0.02432471,69698.0,69690.0,0.00022011]
[1771115798350,0.31131884,69698.0,69690.0,0.00022011]
[1771115798552,0.07174195,69695.0,69690.0,0.00022011]
[1771115799356,0.07174195,69695.0,69690.0,0.01122011]
[1771115799759,0.07174195,69695.0,69690.0,0.00022011]
[1771115799962,0.07174195,69695.0,69690.0,0.01122011]
[1771115800719,0.07174195,69695.0,69690.0,0.00022011]
[1771115800935,0.07174025,69696.0,69690.0,0.00022011]
[1771115801143,0.07173909,69697.0,69690.0,0.01122011]
[1771115801804,4e-05,69698.0,69692.0,0.07174346]
[1771115802254,4e-05,69700.0,69692.0,0.02258498]
[1771115802457,4e-05,69704.0,69697.0,0.08257263]
[1771115802669,0.07177261,69704.0,69697.0,0.15431103]
[1771115802879,4e-05,69704.0,69698.0,0.071738]
[1771115803107,4e-05,69704.0,69697.0,0.10515761]
[1771115803658,0.0004,69701.0,69698.0,0.02431898]
[1771115804049,4e-05,69704.0,69699.0,0.02431898]
[1771115804250,4e-05,69704.0,69700.0,0.02431898]
[1771115804698,0.07177198,69704.0,69700.0,0.02431898]
[1771115804932,4e-05,69704.0,69700.0,0.02431898]
[1771115805548,0.00104,69704.0,69700.0,0.02431898]
[1771115805810,4e-05,69704.0,69700.0,0.02431898]
[1771115806255,4e-05,69704.0,69698.0,0.07173806]
[1771115807281,4e-05,69704.0,69699.0,0.02431898]
[1771115807459,0.07217015,69706.0,69700.0,0.02431898]
[1771115807460,0.00044,69706.0,69700.0,0.02431898]
[1771115807602,0.00044,69706.0,69702.0,0.10537594]
[1771115807807,0.07173115,69705.0,69703.0,0.02431898]
[1771115808008,0.00044,69706.0,69696.0,0.02431898]
[1771115808235,0.00044,69706.0,69701.0,0.07173464]
[1771115808438,0.00044,69706.0,69702.0,0.08105696]
[1771115808630,0.07217048,69706.0,69703.0,0.02431898]
[1771115808853,0.00044,69706.0,69701.0,0.07173465]
[1771115809171,0.00044,69706.0,69701.0,0.02431898]
[1771115809323,0.00044,69706.0,69702.0,0.02431898]
[1771115809965,0.00044,69706.0,69703.0,0.08105696]
[1771115810135,0.00044,69706.0,69704.0,0.02431898]
[1771115811746,0.00544,69706.0,69704.0,0.02431898]
[1771115811945,0.00044,69706.0,69704.0,0.02431898]
[1771115812881,0.07216793,69708.0,69704.0,0.02431898]
[1771115813231,0.07216793,69708.0,69704.0,0.02427898]
[1771115813437,1e-08,69710.0,69709.0,0.10537594]
[1771115813610,0.04772928,69720.0,69710.0,0.00016]
[1771115814153,0.07172061,69715.0,69710.0,0.00016]
[1771115814351,0.33459216,69720.0,69710.0,0.00016]
[1771115814567,0.02487631,69724.0,69710.0,0.00016]
[1771115814726,0.07171964,69716.0,69710.0,0.00016]
[1771115815372,0.07171543,69720.0,69712.0,0.07172355]
[1771115815564,0.002,69720.0,69712.0,0.02431898]
[1771115815818,0.07171954,69716.0,69712.0,0.02431898]
[1771115816732,0.07183202,69716.0,69712.0,0.02431898]
[1771115817248,0.00011248,69716.0,69712.0,0.02431898]
[1771115817460,0.00011248,69716.0,69711.0,0.01045731]
[1771115818008,0.00011248,69716.0,69710.0,0.07188555]
[1771115818229,0.00111248,69716.0,69710.0,0.07188555]
[1771115818417,0.00011248,69716.0,69710.0,0.07188555]
[1771115818770,0.07183207,69716.0,69710.0,0.07188555]
[1771115819322,0.07172376,69712.0,69710.0,0.00016]
[1771115819511,0.07172469,69711.0,69710.0,0.00016]
[1771115821017,0.07172469,69711.0,69710.0,0.00012]
[1771115821843,0.07872469,69711.0,69710.0,0.00012]
[1771115822045,0.07172469,69711.0,69710.0,0.00012]
[1771115822382,0.07872469,69711.0,69710.0,0.00012]
[1771115822607,0.07172469,69711.0,69710.0,0.00012]
[1771115822940,0.07872469,69711.0,69710.0,0.00012]
[1771115824235,0.07172469,69711.0,69710.0,0.00012]
[1771115824434,0.07872469,69711.0,69710.0,0.00012]
[1771115825666,0.07172469,69711.0,69710.0,0.00012]
[1771115825867,0.07872469,69711.0,69710.0,0.00012]
[1771115827865,0.09620211,69710.0,69707.0,0.34356]
[1771115828060,0.02447631,69709.0,69707.0,0.34356]
[1771115828311,0.0717258,69710.0,69707.0,0.34356]
[1771115828651,0.07172679,69709.0,69707.0,0.34356]
[1771115829203,0.0727258,69710.0,69707.0,0.34356]
[1771115829412,0.07172777,69708.0,69702.0,0.0002]
[1771115830970,0.002,69708.0,69702.0,0.07193378]
[1771115831289,0.09660292,69711.0,69702.0,0.07193378]
[1771115831493,0.001,69708.0,69702.0,0.0002]
[1771115832958,0.07272794,69708.0,69702.0,0.0002]
[1771115833103,0.07172794,69708.0,69702.0,0.0002]
[1771115833523,0.07172794,69708.0,69702.0,0.0012]
[1771115834552,0.02487631,69711.0,69702.0,0.07293386]
[1771115834712,0.0004,69711.0,69705.0,0.07173022]
[1771115835533,0.0004,69711.0,69704.0,0.0717315]
[1771115836066,0.07212478,69711.0,69704.0,0.0717315]
[1771115836268,0.07212478,69711.0,69704.0,0.0715717]
[1771115836484,0.07212478,69711.0,69702.0,0.07193323]
[1771115836485,0.07172581,69710.0,69703.0,0.07173267]
[1771115836676,0.07212478,69711.0,69704.0,0.07173184]
[1771115837700,0.07212478,69711.0,69704.0,0.07193184]
[1771115838225,0.07412478,69711.0,69704.0,0.07193184]
[1771115839240,0.07212478,69711.0,69704.0,0.07193184]
[1771115839639,0.07312478,69711.0,69704.0,0.07193184]
[1771115839826,0.07212478,69711.0,69704.0,0.07193184]
[1771115840268,0.07312478,69711.0,69704.0,0.07193184]
[1771115840984,0.07212478,69711.0,69704.0,0.07193184]
[1771115841308,0.07172866,69708.0,69704.0,0.0002]
[1771115841995,0.0024,69711.0,69704.0,0.0002]
[1771115841996,0.07172901,69707.0,69704.0,0.0002]
[1771115842716,0.07172642,69710.0,69704.0,0.0012]
[1771115843090,0.001,69708.0,69704.0,0.0002]
[1771115843263,4e-05,69706.0,69704.0,0.0002]
[1771115844458,4e-05,69706.0,69704.0,0.0022]
[1771115847200,4e-05,69706.0,69704.0,0.0002]
[1771115847573,4e-05,69706.0,69704.0,0.0032]
[1771115851854,4e-05,69706.0,69704.0,0.0002]
[1771115852148,0.00304,69706.0,69704.0,0.0002]
[1771115852341,4e-05,69706.0,69704.0,0.0002]
[1771115852733,0.00404,69706.0,69704.0,0.0002]
[1771115853117,4e-05,69706.0,69704.0,0.0002]
[1771115853355,0.00304,69706.0,69704.0,0.0002]
[1771115854556,0.00304,69706.0,69700.0,1e-08]
[1771115854808,0.00304,69706.0,69659.0,0.0247029]
[1771115854809,0.02438521,69680.0,69659.0,0.0247029]
[1771115855084,0.28696463,69696.0,69659.0,0.0247029]
[1771115855085,0.07176694,69670.0,69659.0,0.10708753]
[1771115855384,0.02438521,69677.0,69660.0,0.43273042]
[1771115855536,0.00012,69680.0,69668.0,0.08238463]
[1771115855740,0.07175667,69680.0,69671.0,0.07176581]
[1771115855970,0.07175605,69681.0,69670.0,0.00012]
[1771115856161,0.05020958,69681.0,69670.0,0.07232263]
[1771115856366,0.02438521,69678.0,69670.0,0.00055601]
[1771115856563,0.0717652,69672.0,69670.0,0.00055601]
[1771115856973,0.07175974,69677.0,69670.0,0.00055601]
[1771115857149,0.07176076,69676.0,69670.0,0.00055601]
[1771115857356,0.001,69678.0,69670.0,0.00055601]
[1771115857553,0.07176083,69676.0,69670.0,0.00055601]
[1771115857783,0.0716083,69676.0,69670.0,0.00055601]
[1771115857974,0.09614711,69675.0,69670.0,0.00355601]
[1771115858170,4e-05,69672.0,69670.0,0.00351601]
[1771115858374,4e-05,69672.0,69670.0,0.00051601]
[1771115858603,4e-05,69672.0,69670.0,0.00351601]
[1771115859019,4e-05,69676.0,69670.0,0.00351601]
[1771115859020,4e-05,69676.0,69670.0,0.00051601]
[1771115859204,4e-05,69676.0,69670.0,0.0782823]
[1771115859418,4e-05,69676.0,69671.0,0.07176582]
[1771115859593,4e-05,69676.0,69670.0,0.00051601]
[1771115859814,4e-05,69676.0,69671.0,0.07176587]
[1771115860018,4e-05,69676.0,69670.0,0.00551601]
[1771115860402,0.07168544,69679.0,69670.0,0.00551601]
[1771115861059,0.07168544,69679.0,69670.0,0.07728276]
[1771115861598,0.07168544,69679.0,69670.0,0.07228276]
[1771115861793,0.07168544,69679.0,69671.0,0.002]
[1771115861993,0.07168544,69679.0,69670.0,0.07228276]
[1771115862624,0.07175868,69678.0,69670.0,0.07228276]
[1771115862849,0.07145351,69678.0,69670.0,0.07228276]
[1771115863055,0.0713009,69678.0,69670.0,0.07228276]
[1771115863467,0.07375769,69679.0,69671.0,0.07176587]
[1771115863666,0.07175769,69679.0,69671.0,0.07176587]
[1771115863875,0.00017056,69678.0,69670.0,0.07228289]
[1771115864595,4e-05,69676.0,69666.0,0.28013243]
[1771115864762,0.00047568,69676.0,69671.0,0.07176538]
[1771115865176,0.00032313,69676.0,69671.0,0.07176538]
[1771115865377,0.00032313,69676.0,69669.0,0.071767]
[1771115866551,0.02310332,69681.0,69671.0,0.07176587]
[1771115866923,0.00017056,69675.0,69671.0,0.07186598]
[1771115867623,0.00017056,69675.0,69672.0,0.07176483]
[1771115868853,0.00217056,69675.0,69672.0,0.07176483]
[1771115869053,0.00017056,69675.0,69672.0,0.07176483]
[1771115869476,0.00217056,69675.0,69672.0,0.07176483]
[1771115871054,0.002,69675.0,69672.0,0.07176483]
[1771115871470,0.00030509,69674.0,69672.0,0.07176483]
[1771115872492,0.07179478,69682.0,69675.0,0.07176157]
[1771115873039,0.02310332,69681.0,69675.0,0.07176157]
[1771115873240,4e-05,69676.0,69675.0,0.07172157]
[1771115873782,4e-05,69676.0,69670.0,0.00012]
[1771115873970,4e-05,69676.0,69664.0,4e-05]
[1771115874169,0.07176345,69674.0,69666.0,0.07181087]
[1771115874480,0.00012,69680.0,69677.0,0.07175969]
[1771115874682,0.00012,69680.0,69674.0,0.0815022]
[1771115874683,0.00012,69680.0,69678.0,0.07175865]
[1771115874937,1e-08,69688.0,69673.0,0.0815022]
[1771115875127,0.0004,69691.0,69690.0,0.0717463]
[1771115875128,9.99e-05,69691.0,69690.0,0.0717463]
[1771115875553,9.99e-05,69691.0,69687.0,0.07174901]
[1771115876534,9.99e-05,69691.0,69685.0,0.07175103]
[1771115876941,0.07174631,69690.0,69683.0,0.07175349]
[1771115877105,9.99e-05,69691.0,69684.0,0.07175156]
[1771115877324,9.99e-05,69691.0,69683.0,0.07175349]
[1771115877325,9.99e-05,69691.0,69685.0,0.0717514]
[1771115877522,9.99e-05,69691.0,69690.0,0.001]
[1771115877789,0.07184545,69691.0,69683.0,0.07175349]
[1771115877992,9.99e-05,69691.0,69685.0,0.07175137]
[1771115878626,0.0080999,69691.0,69685.0,0.07175137]
[1771115878834,9.99e-05,69691.0,69685.0,0.07175137]
[1771115879329,0.0020999,69691.0,69683.0,0.07175349]
[1771115880335,0.0020999,69691.0,69685.0,0.07175072]
[1771115880560,9.99e-05,69691.0,69686.0,0.07175031]
[1771115881480,0.0010999,69691.0,69686.0,0.07175031]
[1771115881696,9.99e-05,69691.0,69686.0,0.07175031]
[1771115882045,0.0010999,69691.0,69686.0,0.07175031]
[1771115882246,9.99e-05,69691.0,69686.0,0.07175031]
[1771115882446,9.99e-05,69691.0,69687.0,0.0717493]
[1771115882849,0.07174073,69696.0,69685.0,0.07175072]
[1771115882850,0.00012,69700.0,69685.0,0.02466988]
[1771115883073,0.00053089,69698.0,69688.0,0.53911032]
[1771115883279,0.00053089,69698.0,69696.0,0.07173918]
[1771115883448,0.02310332,69707.0,69696.0,0.07173918]
[1771115883652,0.02310332,69707.0,69696.0,0.07173955]
[1771115883891,0.07192652,69703.0,69695.0,0.07174046]
[1771115884511,0.07173398,69702.0,69695.0,0.07174046]
[1771115884661,0.07192595,69703.0,69696.0,0.07174008]
[1771115884868,0.07392595,69703.0,69695.0,0.071741]
[1771115885071,0.07192595,69703.0,69695.0,0.071741]
[1771115885497,0.07192595,69703.0,69692.0,0.0815022]
[1771115885498,0.0001928,69703.0,69698.0,0.07173771]
[1771115885692,0.0021928,69703.0,69698.0,0.07173771]
[1771115886096,0.00030525,69702.0,69697.0,0.07173878]
[1771115886293,0.00030525,69702.0,69694.0,0.02466988]
[1771115886499,0.00030525,69702.0,69696.0,0.07173933]
[1771115886983,0.00030525,69702.0,69698.0,0.07173766]
[1771115887154,0.00030525,69702.0,69696.0,0.28695829]
[1771115887454,0.00030525,69702.0,69694.0,0.10617208]
[1771115887455,0.00030525,69702.0,69701.0,0.07173498]
[1771115887605,0.00030525,69702.0,69700.0,0.07173592]
[1771115888244,0.00030525,69702.0,69699.0,0.17786912]
[1771115888245,4e-05,69700.0,69699.0,0.17786912]
[1771115888496,4e-05,69706.0,69700.0,0.07173515]
[1771115889809,0.0004,69703.0,69700.0,0.07173515]
[1771115889978,0.00056,69710.0,69709.0,0.07172674]
[1771115890303,0.00056,69710.0,69701.0,0.07173498]
[1771115890602,0.00056,69710.0,69700.0,0.53911032]
[1771115890809,0.00056,69710.0,69701.0,0.07173306]
[1771115891010,0.07172759,69709.0,69701.0,0.07173306]
[1771115891169,0.002,69706.0,69701.0,0.07173306]
[1771115891372,0.002,69706.0,69702.0,0.07173329]
[1771115891597,0.07172759,69709.0,69702.0,0.07173329]
[1771115892400,0.07157496,69709.0,69702.0,0.07173329]
[1771115892708,0.07157496,69709.0,69700.0,0.02466988]
[1771115893118,0.07173161,69705.0,69697.0,0.07173872]
[1771115894636,0.07174115,69695.0,69694.0,4e-05]
[1771115895052,0.09626895,69697.0,69694.0,4e-05]
[1771115896023,0.0245297,69697.0,69694.0,4e-05]
[1771115896725,0.009,69695.0,69694.0,4e-05]
[1771115896938,0.0245297,69697.0,69694.0,4e-05]
[1771115897263,0.0325297,69697.0,69694.0,4e-05]
[1771115897436,0.0717411,69696.0,69694.0,4e-05]
[1771115897821,0.008,69695.0,69694.0,4e-05]
[1771115898017,0.0717411,69696.0,69694.0,4e-05]
[1771115899824,0.004,69695.0,69694.0,4e-05]
[1771115900245,0.0717411,69696.0,69694.0,4e-05]
[1771115900448,0.1002708,69696.0,69694.0,4e-05]
[1771115900661,0.0962708,69696.0,69694.0,4e-05]
[1771115901264,0.0717411,69696.0,69694.0,4e-05]
[1771115902056,0.00012,69720.0,69694.0,4e-05]